bitfinex/quotes_ETHUSD_20240921
["timestamp","ask_amount","ask_price","bid_price","bid_amount"]
[1726959695511,14.66,2576.5,2576.4,10.40237208]
[1726959696184,14.66,2576.5,2576.4,8.21094808]
[1726959697664,14.66,2576.5,2576.4,11.87776661]
[1726959697864,17.99,2576.5,2576.4,14.35706661]
[1726959698404,17.99,2576.5,2576.4,13.93611161]
[1726959698562,17.99,2576.5,2576.4,11.45681161]
[1726959698763,17.99,2576.5,2576.4,7.34904263]
[1726959700405,21.32,2576.5,2576.4,7.34904263]
[1726959701611,21.32,2576.5,2576.4,0.6822241]
[1726959702571,24.65,2576.5,2576.4,0.6822241]
[1726959703209,27.0582,2576.5,2576.4,0.6822241]
[1726959703774,24.65,2576.5,2576.4,4.34904263]
[1726959703991,24.65,2576.5,2576.4,9.82834263]
[1726959705088,27.98,2576.5,2576.4,9.82834263]
[1726959705700,27.98,2576.5,2576.4,7.93546109]
[1726959706097,27.98,2576.5,2576.4,7.34904263]
[1726959707420,27.98,2576.5,2576.4,0.6822241]
[1726959707592,31.31,2576.5,2576.4,0.6822241]
[1726959707914,31.31,2576.5,2576.3,0.55]
[1726959708114,31.31,2576.5,2576.4,0.68220018]
[1726959710180,31.31,2576.5,2576.4,3.68220018]
[1726959714895,34.64,2576.5,2576.4,3.68220018]
[1726959717525,37.97,2576.5,2576.4,3.68220018]
[1726959717823,37.97,2576.5,2576.4,3.55]
[1726959719723,41.3,2576.5,2576.4,3.55]
[1726959722011,41.3,2576.5,2576.4,2.24268525]
[1726959722192,44.63,2576.5,2576.4,2.24268525]
[1726959722703,44.63,2576.5,2576.4,8.47889378]
[1726959724124,44.63,2576.5,2576.4,28.46279778]
[1726959724310,44.63,2576.5,2576.4,29.06407341]
[1726959724511,44.63,2576.5,2576.4,29.19631879]
[1726959724716,47.96,2576.5,2576.4,29.19631879]
[1726959724897,47.96,2576.5,2576.4,29.19633996]
[1726959725102,47.96,2576.5,2576.4,34.83919896]
[1726959727352,51.29,2576.5,2576.4,34.83919896]
[1726959727560,51.29,2576.5,2576.4,32.31206596]
[1726959727741,51.29,2576.5,2576.4,32.55031862]
[1726959728318,51.29,2576.5,2576.4,31.94902182]
[1726959728546,51.29,2576.5,2576.4,32.06513567]
[1726959729654,51.29,2576.5,2576.4,31.82688301]
[1726959729832,54.62,2576.5,2576.4,31.82688301]
[1726959730459,54.62,2576.5,2576.4,31.22569616]
[1726959730957,54.62,2576.5,2576.4,31.82688301]
[1726959731465,54.62,2576.5,2576.4,31.22569616]
[1726959732456,57.95,2576.5,2576.4,31.22569616]
[1726959732655,57.95,2576.5,2576.4,31.46275073]
[1726959732861,46.53317653,2576.5,2576.4,33.90303903]
[1726959733361,46.53317653,2576.5,2576.4,34.3041929]
[1726959734720,49.86317653,2576.5,2576.4,34.99169075]
[1726959735267,49.73317653,2576.5,2576.4,34.3041929]
[1726959735441,49.73317653,2576.5,2576.4,34.9916801]
[1726959735634,46.63017653,2576.5,2576.4,34.9916801]
[1726959735949,40.75236282,2576.5,2576.4,34.9916801]
[1726959736671,40.74692899,2576.5,2576.4,34.5513918]
[1726959737144,44.07692899,2576.5,2576.4,34.5513918]
[1726959737957,43.90692899,2576.5,2576.4,34.5513918]
[1726959738665,43.49692899,2576.5,2576.4,34.5513918]
[1726959738965,43.31792899,2576.5,2576.4,34.5513918]
[1726959739464,42.27152899,2576.5,2576.4,34.5513918]
[1726959739633,45.60152899,2576.5,2576.4,34.5513918]
[1726959739834,45.60152899,2576.5,2576.4,62.4368348]
[1726959740547,44.92842899,2576.5,2576.4,62.4368348]
[1726959740966,31.80211528,2576.5,2576.4,62.4368348]
[1726959741267,31.12257798,2576.5,2576.4,62.8771231]
[1726959741469,31.12257798,2576.5,2576.4,62.1896359]
[1726959741673,26.35907798,2576.5,2576.4,62.87618396]
[1726959741826,21.89164429,2576.5,2576.4,62.87618396]
[1726959742024,25.22164429,2576.5,2576.4,62.87618396]
[1726959742262,21.26044429,2576.5,2576.4,62.87618396]
[1726959742457,17.83864429,2576.5,2576.4,62.87618396]
[1726959743337,16.39434429,2576.5,2576.4,62.87618396]
[1726959743526,9.32829763,2576.5,2576.4,62.87618396]
[1726959743946,8.44169763,2576.5,2576.4,62.87618396]
[1726959744554,11.66269763,2576.5,2576.4,62.87618396]
[1726959744751,10.66269763,2576.5,2576.4,62.87618396]
[1726959744952,10.16269763,2576.5,2576.4,62.87618396]
[1726959745143,9.67269763,2576.5,2576.4,62.87618396]
[1726959745847,9.51269763,2576.5,2576.4,62.87618396]
[1726959746259,7.06149763,2576.5,2576.4,62.87618396]
[1726959746449,13.32,2576.7,2576.6,2.2932]
[1726959746654,13.32,2576.7,2576.6,58.03588525]
[1726959746852,13.32,2576.7,2576.6,58.72243331]
[1726959747768,10.21839686,2576.7,2576.6,58.72243331]
[1726959748129,3.80419686,2576.7,2576.6,58.03588525]
[1726959748325,3.33,2576.8,2576.7,2.0]
[1726959748637,2.133,2576.8,2576.7,59.02865938]
[1726959749380,1.664,2576.8,2576.7,59.02865938]
[1726959750652,1.07412,2576.8,2576.7,59.02865938]
[1726959751069,1.07412,2576.8,2576.7,59.26149563]
[1726959751267,1.07412,2576.8,2576.7,60.07671562]
[1726959754664,1.07412,2576.8,2576.7,60.07636703]
[1726959755946,1.07412,2576.8,2576.7,50.85144703]
[1726959756146,1.07412,2576.8,2576.7,46.82769349]
[1726959757087,3.35572,2576.8,2576.7,3.736378]
[1726959757403,3.35572,2576.8,2576.7,4.44246825]
[1726959758453,3.35572,2576.8,2576.7,7.99246825]
[1726959761852,3.35572,2576.8,2576.7,5.24268525]
[1726959762057,3.35572,2576.8,2576.7,2.24268525]
[1726959762301,3.35572,2576.8,2576.7,21.61978325]
[1726959762503,3.35572,2576.8,2576.7,25.27993125]
[1726959762793,3.35572,2576.8,2576.7,23.64298725]
[1726959764052,3.35572,2576.8,2576.7,21.950302]
[1726959764256,3.35572,2576.8,2576.7,23.03230725]
[1726959764698,1.07412,2576.8,2576.7,23.03230725]
[1726959766014,1.07412,2576.8,2576.7,22.45904125]
[1726959766685,1.07412,2576.8,2576.7,22.95904125]
[1726959767412,1.07412,2576.8,2576.7,23.64561334]
[1726959767712,1.07412,2576.8,2576.7,23.64572637]
[1726959768078,1.07412,2576.8,2576.7,13.52399437]
[1726959768278,1.07412,2576.8,2576.7,12.83730925]
[1726959770782,1.07412,2576.8,2576.7,13.33730925]
[1726959771396,4.40412,2576.8,2576.7,13.33730925]
[1726959773720,7.73412,2576.8,2576.7,15.79330925]
[1726959774580,7.73412,2576.8,2576.7,8.69868525]
[1726959774784,7.73412,2576.8,2576.7,9.19868525]
[1726959775010,7.73412,2576.8,2576.7,33.28962425]
[1726959775313,7.73412,2576.8,2576.7,17.83582935]
[1726959775517,7.73412,2576.8,2576.7,14.31616425]
[1726959776234,11.06412,2576.8,2576.7,14.31616425]
[1726959778290,11.06412,2576.8,2576.7,14.55612255]
[1726959778729,14.39412,2576.8,2576.7,14.55612255]
[1726959778912,14.39412,2576.8,2576.7,15.05612255]
[1726959780660,8.51630629,2576.8,2576.7,15.05612255]
[1726959781502,11.84630629,2576.8,2576.7,15.05612255]
[1726959783909,15.17630629,2576.8,2576.7,15.05612255]
[1726959786494,16.68167397,2576.8,2576.7,19.54632255]
[1726959786700,10.80386026,2576.8,2576.7,19.54632255]
[1726959788237,10.80386026,2576.8,2576.7,17.05612255]
[1726959788930,14.13386026,2576.8,2576.7,17.05612255]
[1726959789147,14.13386026,2576.8,2576.7,17.23039193]
[1726959791272,17.46386026,2576.8,2576.7,17.23039193]
[1726959791971,16.63176026,2576.8,2576.7,17.23039193]
[1726959792664,16.63176026,2576.8,2576.7,19.71969193]
[1726959793731,19.96176026,2576.8,2576.7,19.71969193]
[1726959794777,19.96176026,2576.8,2576.7,17.23039193]
[1726959796369,23.29176026,2576.8,2576.7,17.22929448]
[1726959798812,26.62176026,2576.8,2576.7,17.22929448]
[1726959801386,29.95176026,2576.8,2576.7,17.22929448]
[1726959802978,29.95176026,2576.8,2576.7,9.65581548]
[1726959803177,29.95176026,2576.8,2576.7,58.15581548]
[1726959803389,29.95176026,2576.8,2576.7,58.84220624]
[1726959803815,33.28176026,2576.8,2576.7,58.84220624]
[1726959804509,33.28176026,2576.8,2576.7,52.96398624]
[1726959804719,33.28176026,2576.8,2576.7,48.53114524]
[1726959804890,33.28176026,2576.8,2576.7,49.62239424]
[1726959805077,33.28176026,2576.8,2576.7,44.53605124]
[1726959805609,35.39166026,2576.8,2576.7,16.19202924]
[1726959805855,35.39166026,2576.8,2576.7,15.29874367]
[1726959806212,38.72166026,2576.8,2576.7,14.69913748]
[1726959806419,38.72166026,2576.8,2576.7,15.29881829]
[1726959806651,38.72166026,2576.8,2576.7,16.03217892]
[1726959807025,38.72166026,2576.8,2576.7,16.03219024]
[1726959808152,38.72166026,2576.8,2576.7,10.80331256]
[1726959808325,42.75245554,2576.8,2576.7,10.80331256]
[1726959808715,46.08245554,2576.8,2576.7,10.80331256]
[1726959809111,42.05166026,2576.8,2576.7,10.80331256]
[1726959809337,42.05166026,2576.8,2576.7,11.35331256]
[1726959809618,42.05166026,2576.8,2576.7,10.61995193]
[1726959809828,42.05166026,2576.8,2576.7,11.35359531]
[1726959811169,45.38166026,2576.8,2576.7,11.35359531]
[1726959813238,45.38166026,2576.8,2576.7,11.35359891]
[1726959813448,46.43506026,2576.8,2576.7,11.35359891]
[1726959815276,48.91116026,2576.8,2576.7,8.15060161]
[1726959815451,48.91116026,2576.8,2576.7,11.00964661]
[1726959815863,51.81462043,2576.8,2576.7,11.00964661]
[1726959816067,55.14462043,2576.8,2576.7,11.00964661]
[1726959817445,52.24116026,2576.8,2576.7,11.00964661]
[1726959817845,52.24116026,2576.8,2576.7,10.20102561]
[1726959818086,52.24116026,2576.8,2576.7,8.15060161]
[1726959818481,55.57116026,2576.8,2576.7,8.15060161]
[1726959818751,55.57116026,2576.8,2576.7,10.76441661]
[1726959820590,55.57116026,2576.8,2576.7,10.28657761]
[1726959820933,58.90116026,2576.8,2576.7,10.28657761]
[1726959822632,58.90116026,2576.8,2576.7,9.55293063]
[1726959822805,58.90116026,2576.8,2576.7,10.28636967]
[1726959823519,62.23116026,2576.8,2576.7,10.28636967]
[1726959825799,63.08506026,2576.8,2576.7,10.28636967]
[1726959826843,63.08506026,2576.8,2576.7,9.55293063]
[1726959827234,63.08506026,2576.8,2576.7,10.28625071]
[1726959828107,63.08506026,2576.8,2576.7,9.55293063]
[1726959828304,66.41506026,2576.8,2576.7,9.55293063]
[1726959828504,66.41506026,2576.8,2576.7,10.59156613]
[1726959829110,66.41506026,2576.8,2576.7,9.32480357]
[1726959829330,66.12784682,2576.8,2576.7,9.82480357]
[1726959830816,69.45784682,2576.8,2576.7,9.09156613]
[1726959832221,69.45784682,2576.8,2576.7,41.64169213]
[1726959832421,69.45784682,2576.8,2576.7,38.29169213]
[1726959833145,72.78784682,2576.8,2576.7,38.29169213]
[1726959833363,72.78784682,2576.8,2576.7,38.79169213]
[1726959833724,72.78784682,2576.8,2576.7,32.43622813]
[1726959833933,72.78784682,2576.8,2576.7,31.44653713]
[1726959835648,76.11784682,2576.8,2576.7,31.44653713]
[1726959837566,76.11784682,2576.8,2576.7,31.94653713]
[1726959838248,79.44784682,2576.8,2576.7,31.94653713]
[1726959840543,82.77784682,2576.8,2576.7,31.94653713]
[1726959841459,82.77784682,2576.8,2576.7,32.44653713]
[1726959842087,80.96050313,2576.8,2576.7,36.99053713]
[1726959842242,73.33822942,2576.8,2576.7,36.99053713]
[1726959842841,73.33822942,2576.8,2576.7,63.49959013]
[1726959843176,76.66822942,2576.8,2576.7,63.49959013]
[1726959844047,76.66822942,2576.8,2576.7,53.31218213]
[1726959844248,76.66822942,2576.8,2576.7,51.14952213]
[1726959845186,76.66822942,2576.8,2576.7,50.55943013]
[1726959845563,79.99822942,2576.8,2576.7,50.53536213]
[1726959846162,79.99822942,2576.8,2576.7,50.02227113]
[1726959846369,79.99822942,2576.8,2576.7,32.65424113]
[1726959847280,79.99822942,2576.8,2576.7,30.65424113]
[1726959848001,83.32822942,2576.8,2576.7,30.65424113]
[1726959849397,83.32822942,2576.8,2576.7,19.35864888]
[1726959849599,83.32822942,2576.8,2576.7,20.01269863]
[1726959850371,86.65822942,2576.8,2576.7,20.01269863]
[1726959850991,86.65822942,2576.8,2576.7,20.56269863]
[1726959852919,89.98822942,2576.8,2576.7,20.56269863]
[1726959855308,93.31822942,2576.8,2576.7,20.56269863]
[1726959857610,96.64822942,2576.8,2576.7,20.56269863]
[1726959860228,99.97822942,2576.8,2576.7,20.56269863]
[1726959862653,103.30822942,2576.8,2576.7,20.56269863]
[1726959865258,106.63822942,2576.8,2576.7,20.56269863]
[1726959867651,109.96822942,2576.8,2576.7,20.56269863]
[1726959870094,113.29822942,2576.8,2576.7,20.56269863]
[1726959870991,115.87292942,2576.8,2576.7,20.56269863]
[1726959871154,115.87292942,2576.8,2576.7,7.36695463]
[1726959871377,113.29822942,2576.8,2576.7,7.36695463]
[1726959871680,119.9037247,2576.8,2576.7,9.67774263]
[1726959872167,115.87292942,2576.8,2576.7,9.67774263]
[1726959872378,115.87292942,2576.8,2576.7,13.82415863]
[1726959872379,119.20292942,2576.8,2576.7,13.82415863]
[1726959872735,119.20292942,2576.8,2576.7,14.37415863]
[1726959875074,122.53292942,2576.8,2576.7,14.37415863]
[1726959876487,119.95822942,2576.8,2576.7,14.37415863]
[1726959876685,114.08041571,2576.8,2576.7,16.79325863]
[1726959877031,114.08041571,2576.8,2576.7,14.37415863]
[1726959877581,117.41041571,2576.8,2576.7,14.37415863]
[1726959879061,116.99668665,2576.8,2576.7,14.37415863]
[1726959879357,111.11887294,2576.8,2576.7,14.37415863]
[1726959879565,111.11887294,2576.8,2576.7,16.79325863]
[1726959879957,114.44887294,2576.8,2576.7,16.79325863]
[1726959880567,114.21927294,2576.8,2576.7,16.79325863]
[1726959882490,117.54927294,2576.8,2576.7,16.79325863]
[1726959883763,111.67145923,2576.8,2576.7,16.79325863]
[1726959884837,115.00145923,2576.8,2576.7,16.79325863]
[1726959887516,118.33145923,2576.8,2576.7,16.79325863]
[1726959888226,118.33145923,2576.8,2576.7,10.33605463]
[1726959888384,118.33145923,2576.8,2576.7,60.83605463]
[1726959888918,117.58785923,2576.8,2576.7,60.83605463]
[1726959889718,120.91785923,2576.8,2576.7,60.83605463]
[1726959892345,124.24785923,2576.8,2576.7,60.83605463]
[1726959894628,127.57785923,2576.8,2576.7,60.83605463]
[1726959895733,127.57785923,2576.8,2576.7,58.33605463]
[1726959895896,127.57785923,2576.8,2576.7,58.83605463]
[1726959897288,130.90785923,2576.8,2576.7,58.83605463]
[1726959899364,130.90785923,2576.8,2576.7,56.41695463]
[1726959899563,134.23785923,2576.8,2576.7,45.16507163]
[1726959899977,134.23785923,2576.8,2576.7,45.66507163]
[1726959901985,137.56785923,2576.8,2576.7,45.66507163]
[1726959902473,137.56785923,2576.8,2576.7,48.22707163]
[1726959904106,127.56975454,2576.8,2576.7,48.22707163]
[1726959904255,115.13209225,2576.8,2576.7,49.39941551]
[1726959904460,117.07029225,2576.8,2576.7,49.39941551]
[1726959904660,113.46339225,2576.8,2576.7,49.39941551]
[1726959905405,87.68851628,2576.8,2576.7,53.42426215]
[1726959905706,85.31393515,2576.8,2576.7,49.8712735]
[1726959905998,80.65542347,2576.8,2576.7,49.8712735]
[1726959906301,75.79871261,2576.8,2576.7,53.86573114]
[1726959906804,75.068256,2576.8,2576.7,49.8712735]
[1726959906997,78.398256,2576.8,2576.7,49.8712735]
[1726959907173,78.33746059,2576.8,2576.7,49.8712735]
[1726959907916,78.16319759,2576.8,2576.7,49.8712735]
[1726959908057,73.01584049,2576.8,2576.7,49.8712735]
[1726959908262,73.01584049,2576.8,2576.7,50.3712735]
[1726959908565,70.81054049,2576.8,2576.7,50.3712735]
[1726959908981,69.34194049,2576.8,2576.7,50.3712735]
[1726959909365,72.67194049,2576.8,2576.7,50.3712735]
[1726959909769,70.75448388,2576.8,2576.7,50.3712735]
[1726959910473,70.75448388,2576.8,2576.7,49.52466024]
[1726959911208,65.60712678,2576.8,2576.7,49.52466024]
[1726959911719,68.70712678,2576.8,2576.7,49.52466024]
[1726959912197,68.70712678,2576.8,2576.7,50.02466024]
[1726959912761,68.70712678,2576.8,2576.7,48.33197499]
[1726959912967,68.70712678,2576.8,2576.7,47.46266024]
[1726959914085,72.03712678,2576.8,2576.7,47.46266024]
[1726959916726,75.36712678,2576.8,2576.7,47.46266024]
[1726959917916,75.36712678,2576.8,2576.7,58.71454324]
[1726959918808,78.09872678,2576.8,2576.7,5.120598]
[1726959919120,81.42872678,2576.8,2576.7,2.5]
[1726959919327,85.45952206,2576.8,2576.7,2.5]
[1726959920419,85.45952206,2576.8,2576.7,2.26133384]
[1726959920625,85.45952206,2576.8,2576.7,2.81133384]
[1726959921011,85.45952206,2576.8,2576.7,5.81133384]
[1726959921623,88.78952206,2576.8,2576.7,5.81133384]
[1726959924102,92.11952206,2576.8,2576.7,5.81133384]
[1726959926521,95.44952206,2576.8,2576.7,5.81133384]
[1726959927226,95.44952206,2576.8,2576.7,2.26133384]
[1726959929317,98.77952206,2576.8,2576.7,2.26133384]
[1726959931741,102.10952206,2576.8,2576.7,2.26133384]
[1726959934238,105.43952206,2576.8,2576.7,2.26133384]
[1726959936708,108.76952206,2576.8,2576.7,2.26133384]
[1726959939112,112.09952206,2576.8,2576.7,2.26133384]
[1726959941548,115.42952206,2576.8,2576.7,2.26133384]
[1726959943942,118.75952206,2576.8,2576.7,2.26133384]
[1726959946432,122.08952206,2576.8,2576.7,2.26133384]
[1726959947957,118.05872678,2576.8,2576.7,2.26133384]
[1726959948851,118.65712678,2576.8,2576.7,2.81133384]
[1726959949155,118.65712678,2576.8,2576.7,12.45200184]
[1726959951163,121.98712678,2576.8,2576.7,12.45200184]
[1726959952059,121.98712678,2576.8,2576.7,16.11807333]
[1726959954267,125.31712678,2576.8,2576.7,16.11807333]
[1726959955755,125.31712678,2576.8,2576.7,12.45200184]
[1726959955947,125.31712678,2576.8,2576.7,5.81133384]
[1726959956653,128.64712678,2576.8,2576.7,5.81133384]
[1726959959155,131.97712678,2576.8,2576.7,5.81133384]
[1726959961569,135.30712678,2576.8,2576.7,5.81133384]
[1726959962394,135.30712678,2576.8,2576.7,3.55]
[1726959962596,135.30712678,2576.8,2576.7,1.05]
[1726959963191,135.30712678,2576.8,2576.7,4.9698]
[1726959963359,135.30712678,2576.8,2576.7,7.9698]
[1726959963559,135.30712678,2576.8,2576.7,15.73155]
[1726959964259,138.63712678,2576.8,2576.7,15.73155]
[1726959964796,138.63712678,2576.8,2576.7,14.958432]
[1726959966353,138.63712678,2576.8,2576.7,11.038632]
[1726959966674,141.96712678,2576.8,2576.7,4.55]
[1726959966994,141.96712678,2576.8,2576.7,1.55]
[1726959967870,141.96712678,2576.8,2576.7,1.0]
[1726959969207,145.29712678,2576.8,2576.7,1.0]
[1726959969497,149.32792206,2576.8,2576.7,1.0]
[1726959969683,145.29712678,2576.8,2576.7,1.55]
[1726959970662,145.29712678,2576.8,2576.7,2.05]
[1726959971615,148.62712678,2576.8,2576.7,2.05]
[1726959972535,148.62712678,2576.8,2576.7,8.6822]
[1726959973642,148.62712678,2576.8,2576.7,2.05]
[1726959974151,151.95712678,2576.8,2576.7,2.05]
[1726959974717,151.95712678,2576.8,2576.7,5.55]
[1726959975755,155.98792206,2576.8,2576.7,5.55]
[1726959976657,162.87142206,2576.8,2576.7,5.55]
[1726959978960,162.87142206,2576.8,2576.7,2.5]
[1726959979263,166.20142206,2576.8,2576.7,2.5]
[1726959981725,169.53142206,2576.8,2576.7,2.5]
[1726959983968,165.97792206,2576.8,2576.7,2.5]
[1726959984158,165.27712678,2576.8,2576.7,2.5]
[1726959986874,168.60712678,2576.8,2576.7,2.5]
[1726959989735,171.93712678,2576.8,2576.7,2.5]
[1726959992485,175.26712678,2576.8,2576.7,2.5]
[1726959993000,175.26712678,2576.8,2576.7,9.6939]
[1726959994501,178.93202678,2576.8,2576.7,6.05]
[1726959994675,178.93202678,2576.8,2576.7,2.5]
[1726959994879,185.79176694,2576.8,2576.7,2.5]
[1726959997384,189.12176694,2576.8,2576.7,2.5]
[1726959999915,192.45176694,2576.8,2576.7,2.5]
[1726960002816,195.78176694,2576.8,2576.7,2.5]
[1726960005415,199.11176694,2576.8,2576.7,2.5]
[1726960007724,202.44176694,2576.8,2576.7,2.5]
[1726960010956,205.77176694,2576.8,2576.7,2.5]
[1726960013541,209.10176694,2576.8,2576.7,2.5]
[1726960016124,212.43176694,2576.8,2576.7,2.5]
[1726960017883,208.76686694,2576.8,2576.7,2.5]
[1726960018091,205.23712678,2576.8,2576.7,2.5]
[1726960018448,208.56712678,2576.8,2576.7,2.5]
[1726960021393,209.70536378,2576.8,2576.7,2.5]
[1726960022193,209.70536378,2576.8,2576.7,3.05]
[1726960022564,209.70536378,2576.8,2576.7,6.05]
[1726960028103,209.70536378,2576.8,2576.7,10.66047219]
[1726960028286,209.70536378,2576.8,2576.7,26.63109619]
[1726960028965,209.70536378,2576.8,2576.7,24.13109619]
[1726960029297,209.70536378,2576.8,2576.7,24.63109619]
[1726960032386,209.70536378,2576.8,2576.7,22.64322319]
[1726960033199,209.70536378,2576.8,2576.7,23.14322319]
[1726960035127,209.70536378,2576.8,2576.7,16.85439319]
[1726960035303,209.70536378,2576.8,2576.7,8.0192]
[1726960035605,209.70536378,2576.8,2576.7,1.55]
[1726960036080,209.70536378,2576.8,2576.7,1.0]
[1726960037304,209.70536378,2576.8,2576.7,2.05]
[1726960038478,213.30756378,2576.8,2576.7,2.05]
[1726960038695,217.33835906,2576.8,2576.7,2.05]
[1726960041337,217.33835906,2576.8,2576.7,2.55]
[1726960041540,217.33835906,2576.8,2576.7,5.55]
[1726960041745,213.30756378,2576.8,2576.7,5.55]
[1726960045340,213.30756378,2576.8,2576.7,2.0]
[1726960045535,213.30756378,2576.8,2576.7,5.5]
[1726960051880,209.70536378,2576.8,2576.7,5.5]
[1726960091321,209.70536378,2576.8,2576.5,3.0]
[1726960091825,209.70536378,2576.8,2576.6,0.55]
[1726960091992,213.73615906,2576.8,2576.6,0.55]
[1726960095796,213.73615906,2576.8,2576.7,0.5]
[1726960096229,209.70536378,2576.8,2576.7,0.5]
[1726960099809,209.70536378,2576.8,2576.7,1.0]
[1726960102760,209.70536378,2576.8,2576.7,5.3027]
[1726960102965,209.70536378,2576.8,2576.7,8.3027]
[1726960103862,209.70536378,2576.8,2576.7,8.8027]
[1726960104747,209.70536378,2576.8,2576.7,2.05]
[1726960122604,212.35087601,2576.8,2576.7,2.05]
[1726960124512,209.70536378,2576.8,2576.7,2.05]
[1726960133411,209.70536378,2576.8,2576.7,1.5]
[1726960144036,209.25650447,2576.8,2576.7,10.9699603]
[1726960144338,209.25650447,2576.8,2576.7,10.42782191]
[1726960145033,209.25650447,2576.8,2576.7,8.7349]
[1726960145529,209.25650447,2576.8,2576.7,2.05]
[1726960148317,209.25650447,2576.8,2576.7,3.74292191]
[1726960148531,209.25650447,2576.8,2576.7,6.74292191]
[1726960148736,209.25650447,2576.8,2576.7,10.35212191]
[1726960155016,209.25650447,2576.8,2576.7,8.6592]
[1726960155202,209.25650447,2576.8,2576.7,10.35212191]
[1726960171641,209.25650447,2576.8,2576.7,10.8942603]
[1726960173150,209.25650447,2576.8,2576.7,10.35212191]
[1726960173346,209.25650447,2576.8,2576.7,11.45184945]
[1726960182391,209.25650447,2576.8,2576.7,10.35212191]
[1726960187592,209.25650447,2576.8,2576.7,6.74292191]
[1726960197404,209.25650447,2576.8,2576.7,10.36882191]
[1726960212936,209.20633846,2576.8,2576.7,10.36882191]
[1726960214537,208.37763843,2576.8,2576.7,10.36882191]
[1726960214743,184.11116976,2576.8,2576.7,14.06657168]
[1726960214941,182.52384687,2576.8,2576.7,14.45489764]
[1726960215258,180.82324687,2576.8,2576.7,14.45489764]
[1726960215643,179.09504687,2576.8,2576.7,14.45489764]
[1726960215847,179.09504687,2576.8,2576.7,12.37364977]
[1726960216041,179.09504687,2576.8,2576.7,10.1259]
[1726960216363,179.09504687,2576.8,2576.7,5.19292191]
[1726960217472,179.09504687,2576.8,2576.7,8.74292191]
[1726960220641,179.09504687,2576.8,2576.7,9.2850603]
[1726960222372,179.09504687,2576.8,2576.7,8.74292191]
[1726960224373,179.09504687,2576.8,2576.7,9.2850603]
[1726960229590,179.09504687,2576.8,2576.7,12.9130603]
[1726960229591,175.8584896,2576.8,2576.7,12.9130603]
[1726960230883,173.7064896,2576.8,2576.7,12.9130603]
[1726960231592,171.7993896,2576.8,2576.7,12.9130603]
[1726960231990,169.8922896,2576.8,2576.7,12.9130603]
[1726960232893,168.9792896,2576.8,2576.7,12.9130603]
[1726960233493,163.7131996,2576.8,2576.7,12.9130603]
[1726960233693,152.46946558,2576.8,2576.7,12.9130603]
[1726960233857,148.81096558,2576.8,2576.7,12.9130603]
[1726960234055,144.15299638,2576.8,2576.7,12.9130603]
[1726960234496,139.49502718,2576.8,2576.7,12.9130603]
[1726960234866,134.83705798,2576.8,2576.7,12.9130603]
[1726960235070,133.44995799,2576.8,2576.7,12.9130603]
[1726960235269,132.11395799,2576.8,2576.7,12.9230603]
[1726960235906,132.11395799,2576.8,2576.7,12.38092191]
[1726960237200,131.27475799,2576.8,2576.7,12.38092191]
[1726960237601,129.50525799,2576.8,2576.7,12.38092191]
[1726960237898,128.31825799,2576.8,2576.7,12.38092191]
[1726960238200,127.70165799,2576.8,2576.7,12.38092191]
[1726960239307,127.26135799,2576.8,2576.7,12.38092191]
[1726960241497,127.26135799,2576.8,2576.7,12.9230603]
[1726960243499,124.57545799,2576.8,2576.7,12.9230603]
[1726960244012,116.75545799,2576.8,2576.7,12.9230603]
[1726960245710,114.68835799,2576.8,2576.7,12.9230603]
[1726960246608,114.68835799,2576.8,2576.7,15.2520603]
[1726960246815,114.68835799,2576.8,2576.7,12.9230603]
[1726960247921,114.21161799,2576.8,2576.7,12.9230603]
[1726960250109,114.21161799,2576.8,2576.7,12.9130603]
[1726960250619,111.82781799,2576.8,2576.7,12.9130603]
[1726960251313,109.44411799,2576.8,2576.7,12.9130603]
[1726960253120,109.44411799,2576.8,2576.7,12.9430603]
[1726960253420,107.06031799,2576.8,2576.7,12.9430603]
[1726960254106,102.17031799,2576.8,2576.7,12.9430603]
[1726960254310,101.59921799,2576.8,2576.7,12.9430603]
[1726960255822,101.44921799,2576.8,2576.7,12.9430603]
[1726960256024,99.58921799,2576.8,2576.7,12.9430603]
[1726960256926,92.21921799,2576.8,2576.7,12.9430603]
[1726960258330,85.10921799,2576.8,2576.7,12.9430603]
[1726960260325,77.75921799,2576.8,2576.7,12.9430603]
[1726960260826,76.12921799,2576.8,2576.7,12.9430603]
[1726960262329,75.93522731,2576.8,2576.7,12.9430603]
[1726960262516,75.65224798,2576.8,2576.7,12.9430603]
[1726960263830,74.82304798,2576.8,2576.7,12.9430603]
[1726960264432,73.73104798,2576.8,2576.7,12.9430603]
[1726960264903,73.21004798,2576.8,2576.7,12.9430603]
[1726960265827,72.88404798,2576.8,2576.7,12.9430603]
[1726960266029,72.03774798,2576.8,2576.7,12.9430603]
[1726960266929,71.60174798,2576.8,2576.7,12.9430603]
[1726960268194,71.60174798,2576.8,2576.7,12.9130603]
[1726960269339,66.82174798,2576.8,2576.7,12.9130603]
[1726960269928,66.35674798,2576.8,2576.7,12.9130603]
[1726960270127,66.15374798,2576.8,2576.7,12.9130603]
[1726960270833,65.85074798,2576.8,2576.7,12.9130603]
[1726960274338,64.20864898,2576.8,2576.7,12.9130603]
[1726960276809,61.82494898,2576.8,2576.7,12.9130603]
[1726960277337,59.44124898,2576.8,2576.7,12.9130603]
[1726960279639,58.61364898,2576.8,2576.7,12.9130603]
[1726960279940,56.22994898,2576.8,2576.7,12.9130603]
[1726960280312,55.59424898,2576.8,2576.7,12.9130603]
[1726960280511,55.18539898,2576.8,2576.7,12.9130603]
[1726960280913,40.44276698,2576.8,2576.7,12.9130603]
[1726960281110,35.54419046,2576.8,2576.7,13.35887843]
[1726960281737,30.88670939,2576.8,2576.7,13.35887843]
[1726960282038,25.88222832,2576.8,2576.7,13.35887843]
[1726960282243,25.8795679,2576.8,2576.7,13.35887843]
[1726960282405,21.22208683,2576.8,2576.7,13.35887843]
[1726960282605,21.19445416,2576.8,2576.7,13.35887843]
[1726960282830,16.53697309,2576.8,2576.7,13.35887843]
[1726960283031,15.88717309,2576.8,2576.7,13.35887843]
[1726960283305,11.14223256,2576.8,2576.7,13.35887843]
[1726960283506,6.48475149,2576.8,2576.7,13.35887843]
[1726960283934,1.82727042,2576.8,2576.7,13.35887843]
[1726960284101,6.66,2576.9,2576.8,3.55]
[1726960284845,6.527,2576.9,2576.8,3.55]
[1726960285349,5.8379,2576.9,2576.8,3.55]
[1726960285521,5.29591532,2576.9,2576.8,3.55]
[1726960285843,5.00086823,2576.9,2576.8,3.55]
[1726960286240,5.00086823,2576.9,2576.8,3.57]
[1726960288245,5.00086823,2576.9,2576.8,3.55]
[1726960290145,4.88716823,2576.9,2576.8,3.55]